Workbook

Sheet 用法说明
B1: 用法说明
B2: 组织度量库供高层经理参考，提供公司的组织级性能基线。
B3: 根据组织级要求，使用了实际工作量分布、进度偏差率、测试缺陷率、评审缺陷效率和缺陷分布情况等度量指标进行度量分析。在下面依次列出。

Sheet 度量数据来源说明
A1: 项目工作量数据
A2: 统计项 | B2: 2023年度 | C2: 2024年度 | D2: 来源说明
A3: 需求开发 | B3: 122.3 | C3: 143.28
A4: 系统设计 | B4: 132.78 | C4: 155.54 | D4: 来源于2023，2024年度所有项目， 各阶段的工作量统计，以统计项的统计维度进行统计， 注：因汇总整理中，部分数据有遗失，取相对的估值
A5: 编码实现 | B5: 155.51 | C5: 172.15
A6: 系统测试 | B6: 142.6 | C6: 154.22
A7: 验收交付 | B7: 78.2 | C7: 84.14
A8: 工程合计 | B8: =SUM(B1:B7) -> 631.39 | C8: =SUM(C1:C7) -> 709.33
A9: 立项管理 | B9: 25.63 | C9: 35.65
A10: 项目计划 | B10: 34.43 | C10: 41.23
A11: 项目监控 | B11: 63.54 | C11: 74.77
A12: 风险管理 | B12: 25.34 | C12: 33.54
A13: 评审管理 | B13: 25.98 | C13: 46.91
A14: 配置管理 | B14: 27.15 | C14: 23.59
A15: 质量保证 | B15: 79.66 | C15: 84.85
A16: 培训管理 | B16: 48.15 | C16: 54.78
A17: 结项管理 | B17: 39.97 | C17: 50.09
A18: 管理合计 | B18: =SUM(B9:B17) -> 369.85 | C18: =SUM(C9:C17) -> 445.41
A20: 项目进度数据
A21: 统计项 | B21: 2023年度 | C21: 2024年度 | D21: 来源说明
A22: 计划工期 | B22: 173.6 | C22: 198.3 | D22: 来源于2023，2024年度所有项目的计划阶段人天工作量 注：部分数据为估值。
A23: 实际工期 | B23: 188.2 | C23: 208.4
A26: 项目成本数据
A27: 统计项 | B27: 2023年度 | C27: 2024年度 | D27: 来源说明
A28: 计划成本 | B28: 2801140 | C28: 3314253 | D28: 来源于2023，2024年度所有项目合同统计及实际项目工期，及参与人数，推算出来的
A29: 实际成本 | B29: 3050540 | C29: 3530435
A31: 数据来源，另外，取自行业的标准或参考数据

Sheet 公司历史及业界参考数据
A1: 项目工作量数据 | H1: 项目生产率
A2: 统计项 | B2: 2023年度 | C2: 2024年度 | D2: 合计 | E2: 百分比 | F2: 建议值 | H2: 生产率 | I2: 值
A3: 需求开发 | B3: 122.3 | C3: 143.28 | D3: =SUM(B3:C3) -> 265.58 | E3: =D3/$D$8 -> 0.1980875947 | F3: 10/20% | H3: 功能点数人月 | I3: 5-8
A4: 系统设计 | B4: 132.78 | C4: 155.54 | D4: =SUM(B4:C4) -> 288.32 | E4: =D4/$D$8 -> 0.2150486306 | F4: 10/25%
A5: 编码实现 | B5: 155.51 | C5: 172.15 | D5: =SUM(B5:C5) -> 327.66 | E5: =D5/$D$8 -> 0.2443910735 | F5: 20/35% | H5: 系统复杂度
A6: 系统测试 | B6: 142.6 | C6: 154.22 | D6: =SUM(B6:C6) -> 296.82 | E6: =D6/$D$8 -> 0.2213885077 | F6: 10/25% | H6: 生产率 | I6: 值
A7: 验收交付 | B7: 78.2 | C7: 84.14 | D7: =SUM(B7:C7) -> 162.34 | E7: =D7/$D$8 -> 0.1210841936 | F7: 1/15% | H7: 系统复杂度 | I7: 0.7/1.2
A8: 工程合计 | B8: =SUM(B1:B7) -> 631.39 | C8: =SUM(C1:C7) -> 709.33 | D8: =SUM(B8:C8) -> 1340.72 | E8: =D8/D19 -> 0.6218610562 | F8: 60/80%
A9: 立项管理 | B9: 25.63 | C9: 35.65 | D9: 61.28 | E9: =D9/$D$18 -> 0.07516620465 | F9: 1/8%
A10: 项目计划 | B10: 34.43 | C10: 41.23 | D10: 75.66 | E10: =D10/$D$18 -> 0.09280474941 | F10: 3/15% | L10: 2023年 | M10: 2024年
A11: 项目监控 | B11: 63.54 | C11: 74.77 | D11: 138.31 | E11: 0.1696513996 | F11: 10/30% | K11: BUG密度（BUG数/功能点数） | L11: 0.63 | M11: 0.51
A12: 风险管理 | B12: 25.34 | C12: 33.54 | D12: 58.88 | E12: 0.07222235851 | F12: 3/10% | K12: 生产率(功能点数/人月） | L12: 7.5 | M12: 7.9
A13: 评审管理 | B13: 25.98 | C13: 46.91 | D13: 72.89 | E13: 0.08940706032 | F13: 3/15%
A14: 配置管理 | B14: 27.15 | C14: 23.59 | D14: 50.74 | E14: 0.0622378137 | F14: 1/10%
A15: 质量保证 | B15: 79.66 | C15: 84.85 | D15: 164.51 | E15: 0.2017883865 | F15: 10/30%
A16: 培训管理 | B16: 48.15 | C16: 54.78 | D16: 102.93 | E16: 0.1262542011 | F16: 5/15%
A17: 结项管理 | B17: 39.97 | C17: 50.09 | D17: 90.06 | E17: 0.1104678262 | F17: 5/15%
A18: 管理合计 | B18: =SUM(B9:B17) -> 369.85 | C18: =SUM(C9:C17) -> 445.41 | D18: 815.26 | E18: =D18/D19 -> 0.3781389438 | F18: 20/35%
A19: 项目合计 | B19: =B8+B18 -> 1001.24 | C19: =C8+C18 -> 1154.74 | D19: 2155.98 | E19: =D19/D19 -> 1 | F19: -
A21: 项目进度数据 | G21: 系统缺陷质量指标
A22: 统计项 | B22: 2023年度 | C22: 2024年度 | D22: 合计 | E22: 建议值 | G22: 系统缺陷密度（BUG数/功能点数） | I22: ≤0.5
A23: 计划工期 | B23: =度量数据来源说明!B22 -> 173.6 | C23: =度量数据来源说明!C22 -> 198.3 | D23: =SUM(B23:C23) -> 371.9 | E23: - | G23: 无严重等级缺陷
A24: 实际工期 | B24: =度量数据来源说明!B23 -> 188.2 | C24: =度量数据来源说明!C23 -> 208.4 | D24: =SUM(B24:C24) -> 396.6 | E24: - | G24: 备注：项目根据自身情况内容进行裁剪
A25: 进度工期偏差率 | B25: =(B24-B23)/B23 -> 0.08410138249 | C25: =(C24-C23)/C23 -> 0.0509329299 | D25: =(D24-D23)/D23 -> 0.06641570315 | E25: <=10% | G25: 项目监控处理指标
G26: 进度偏离阈值 | I26: 工作量偏离阈值 | K26: 规模偏离阈值
G27: 预警值 | H27: 控制值 | I27: 预警值 | J27: 控制值 | K27: 预警值
A28: 项目成本数据 | G28: 0.15 | H28: 0.2 | I28: 0.15 | J28: 0.2 | K28: 0.15
A29: 统计项 | B29: 2023年度 | C29: 2024年度 | D29: 合计 | E29: 建议值
A30: 计划成本 | B30: =度量数据来源说明!B28 -> 2801140 | C30: =度量数据来源说明!C28 -> 3314253 | D30: =SUM(B30:C30) -> 6115393 | G30: 由于实际成本的调整，该值也需要调整，目标：偏差率不动即可。
A31: 实际成本 | B31: =度量数据来源说明!B29 -> 3050540 | C31: =度量数据来源说明!C29 -> 3530435 | D31: =SUM(B31:C31) -> 6580975
A32: 成本偏差率(CV%) | B32: =(B31-B30)/B30 -> 0.08903517853 | C32: =(C31-C30)/C30 -> 0.06522797143 | D32: =(D31-D30)/D30 -> 0.07613280128 | E32: <=10%
A34: 项目工作量数据
A35: 统计项 | B35: 2023年度 | C35: 2024年度 | D35: 合计 | E35: 建议值
A36: 计划工作量 | B36: 954.2 | C36: 1023.5 | D36: =SUM(B36:C36) -> 1977.7
A37: 实际工作量 | B37: 1044.8 | C37: 1076.4 | D37: =SUM(B37:C37) -> 2121.2
A38: 工作量偏差率 | B38: =(B37-B36)/B36 -> 0.09494864808 | C38: =(C37-C36)/C36 -> 0.05168539326 | D38: =(D37-D36)/D36 -> 0.07255903322 | E38: <=10%
